bitfinex/quotes_SOLUSD_20251013
["timestamp","ask_amount","ask_price","bid_price","bid_amount"]
[1760323635277,20.8,196.88,196.83,18.38184219]
[1760323635794,20.8,196.88,196.84,0.6]
[1760323636881,20.8,196.88,196.83,17.78184219]
[1760323637075,20.8,196.88,196.83,18.38184219]
[1760323638069,11.0126909,196.87,196.83,17.78184219]
[1760323638588,20.8,196.88,196.84,0.6]
[1760323638785,21.45,196.88,196.83,17.78184219]
[1760323638977,31.8126909,196.88,196.83,18.38184219]
[1760323639178,31.1626909,196.88,196.83,18.38184219]
[1760323640197,10.3626909,196.94,196.85,10.3626909]
[1760323640399,10.3626909,196.94,196.87,10.3626909]
[1760323640596,20.8,196.93,196.88,0.6]
[1760323640797,10.3626909,196.96,196.89,10.9626909]
[1760323640995,4.03348457,196.97,196.9,0.6]
[1760323641193,134.1,196.98,196.91,10.3626909]
[1760323641491,10.3626909,196.97,196.9,0.6]
[1760323642078,10.3626909,196.97,196.86,21.4]
[1760323642079,0.65,196.96,196.86,21.4]
[1760323642391,20.9,196.98,196.9,10.3626909]
[1760323642588,20.9,196.98,196.92,10.3626909]
[1760323642782,0.1,196.98,196.93,0.6]
[1760323643100,0.1,196.98,196.96,10.3626909]
[1760323643511,10.3626909,197.04,196.97,0.6]
[1760323643691,0.10053953,196.99,196.97,0.6]
[1760323643887,0.10053953,196.99,196.96,10.3626909]
[1760323644085,0.10053953,196.99,196.98,5.67665752]
[1760323644304,0.10053953,196.99,196.98,5.07665752]
[1760323644781,0.10053953,196.99,196.98,5.67665752]
[1760323645381,0.10053953,196.99,196.98,5.07665752]
[1760323645804,0.10053953,196.99,196.98,5.67665752]
[1760323646385,0.1104504,197.01,196.98,28.73099224]
[1760323646594,0.09355089,197.03,197.0,10.3626909]
[1760323646982,0.09355089,197.03,197.01,0.6]
[1760323647177,0.09355089,197.03,197.01,10.9626909]
[1760323647385,0.1,197.05,197.03,10.3626909]
[1760323647605,1e-08,197.05,197.03,10.3626909]
[1760323647796,1e-08,197.05,197.04,0.6]
[1760323648285,1e-08,197.05,197.04,5.67511165]
[1760323649302,1e-08,197.05,197.04,5.07511165]
[1760323649620,1e-08,197.05,197.04,26.91427776]
[1760323653992,1e-08,197.05,197.04,28.94933156]
[1760323655318,1e-08,197.05,197.04,47.71427776]
[1760323657916,1e-08,197.05,197.04,36.75158686]
[1760323658214,1e-08,197.05,197.04,47.71427776]
[1760323659019,1e-08,197.05,197.04,47.11427776]
[1760323660318,1e-08,197.05,197.04,36.75158686]
[1760323660619,1e-08,197.05,197.04,47.11427776]
[1760323661295,0.66000001,197.05,197.04,5.07511165]
[1760323662096,11.02269091,197.05,197.04,5.07511165]
[1760323663225,1e-08,197.05,197.04,15.43780255]
[1760323663427,1e-08,197.05,197.04,16.03780255]
[1760323663600,1e-08,197.05,197.04,47.71427776]
[1760323663794,0.09584844,197.09,197.04,47.71427776]
[1760323663795,1e-08,197.1,197.05,10.3626909]
[1760323664020,1e-08,197.1,197.07,10.3626909]
[1760323664194,1e-08,197.1,197.04,75.41492425]
[1760323664195,0.7517802,197.13,197.08,10.3626909]
[1760323664395,10.47054831,197.14,197.07,20.8]
[1760323664704,0.66,197.12,197.05,10.3626909]
[1760323665216,11.0226909,197.11,197.04,53.50113994]
[1760323665420,0.66,197.1,197.04,53.50113994]
[1760323665620,0.66,197.1,197.05,10.3626909]
[1760323666718,0.72,197.13,197.07,10.3626909]
[1760323666934,0.72,197.13,197.08,10.3626909]
[1760323667503,0.10785741,197.14,197.09,28.12107539]
[1760323667810,0.10785741,197.14,197.1,10.3626909]
[1760323668526,0.10785741,197.14,197.09,53.49019609]
[1760323668710,0.82785741,197.14,197.09,53.49019609]
[1760323668910,0.72,197.13,197.09,43.12750519]
[1760323669704,0.10785741,197.14,197.09,43.12750519]
[1760323669906,0.82785741,197.14,197.09,43.12750519]
[1760323670708,0.10785741,197.14,197.09,43.12750519]
[1760323670907,11.0826909,197.13,197.09,17.75838449]
[1760323671113,11.0826909,197.12,197.09,17.75838449]
[1760323671334,0.72,197.11,197.09,17.75838449]
[1760323671497,10.3626909,197.1,197.06,12.68596602]
[1760323671710,10.3626909,197.07,197.0,5.07614213]
[1760323672014,11.0826909,197.06,197.0,5.07614213]
[1760323672315,11.0826909,197.06,197.0,17.76649745]
[1760323672526,11.0826909,197.06,197.0,12.69035532]
[1760323672826,0.72,197.07,197.0,48.43375687]
[1760323673001,10.3626909,197.05,197.0,38.07106597]
[1760323673202,0.72,197.04,197.0,38.07106597]
[1760323673422,11.0826909,197.04,197.0,38.07106597]
[1760323673627,11.0826909,197.03,197.0,12.69035532]
[1760323673798,0.72,197.02,197.0,12.69035532]
[1760323674001,11.0826909,197.01,197.0,12.69035532]
[1760323674411,11.0826909,197.01,196.92,28.1364061]
[1760323674718,10.3626909,196.96,196.92,17.7737152]
[1760323675029,0.71,196.95,196.92,43.16473693]
[1760323675823,10.3626909,196.96,196.92,43.16473693]
[1760323676029,0.71,196.94,196.92,43.16473693]
[1760323676226,11.0726909,196.94,196.92,43.16473693]
[1760323676913,11.0726909,196.94,196.92,25.39102173]
[1760323677113,0.71,196.94,196.92,25.39102173]
[1760323677313,0.71,196.94,196.88,17.77732628]
[1760323677633,0.71,196.99,196.89,7.53880539]
[1760323677833,6.93880539,196.95,196.88,17.77732628]
[1760323678011,7.64880539,196.94,196.88,17.77732628]
[1760323678535,6.93880539,196.92,196.88,43.17350669]
[1760323678730,0.71,196.91,196.88,43.17350669]
[1760323679112,7.64880539,196.91,196.88,43.17350669]
[1760323679618,6.93880539,196.91,196.88,43.17350669]
[1760323679823,0.71,196.9,196.88,43.17350669]
[1760323680009,7.64880539,196.89,196.88,5.07923608]
[1760323680213,0.71,196.89,196.88,5.07923608]
[1760323680538,6.93880539,196.91,196.88,17.77732628]
[1760323680716,0.71,196.9,196.88,17.77732628]
[1760323681349,0.71,196.94,196.88,43.17350669]
[1760323681631,7.64880539,196.94,196.88,43.17350669]
[1760323682118,7.64880539,196.97,196.9,6.93880539]
[1760323682317,6.93880539,196.95,196.88,43.17350669]
[1760323682525,6.93880539,196.93,196.88,43.17350669]
[1760323682821,0.71,196.92,196.88,43.17350669]
[1760323683028,6.93880539,196.93,196.88,43.17350669]
[1760323683231,0.71,196.95,196.88,43.17350669]
[1760323683232,6.93880539,196.95,196.89,0.6]
[1760323683410,7.64880539,196.97,196.89,7.53880539]
[1760323683611,0.09169734,196.91,196.9,0.6]
[1760323683807,0.10980059,196.95,196.9,0.6]
[1760323684032,0.10980059,196.95,196.91,0.6]
[1760323684830,0.10980059,196.95,196.92,17.7737152]
[1760323685035,0.10980059,196.95,196.94,6.93880539]
[1760323685529,0.10980059,196.95,196.93,6.93880539]
[1760323686329,7.64880539,196.94,196.92,17.7737152]
[1760323686537,7.64880539,196.93,196.92,17.7737152]
[1760323686833,7.64880539,196.93,196.92,5.07820434]
[1760323687019,7.64880539,196.93,196.89,12.69706478]
[1760323687343,7.64880539,196.92,196.89,12.69706478]
[1760323687518,0.71,196.91,196.89,12.69706478]
[1760323688232,6.93880539,196.92,196.89,12.69706478]
[1760323688424,0.71,196.91,196.89,12.69706478]
[1760323688625,7.64880539,196.91,196.89,12.69706478]
[1760323689934,0.10980059,196.95,196.9,7.53880539]
[1760323690120,6.93880539,196.91,196.89,12.69706478]
[1760323690325,7.64880539,196.9,196.89,12.69706478]
[1760323691442,7.64880539,196.9,196.87,4.86]
[1760323691626,20.8,196.92,196.87,22.63817673]
[1760323691820,0.71,196.91,196.87,22.63817673]
[1760323692017,7.64880539,196.94,196.87,30.17698212]
[1760323692327,7.64880539,196.94,196.87,29.57698212]
[1760323692640,28.44880539,196.93,196.87,22.63817673]
[1760323692940,21.51,196.93,196.87,29.57698212]
[1760323693142,0.10980059,196.95,196.87,29.57698212]
[1760323693329,0.10980059,196.95,196.89,6.93880539]
[1760323693651,0.10980059,196.95,196.9,24.71432595]
[1760323693849,0.10980059,196.95,196.91,6.93880539]
[1760323694432,0.10980059,196.95,196.92,17.7737152]
[1760323694637,0.10980059,196.95,196.94,6.93880539]
[1760323695644,1e-08,196.96,196.94,7.53880539]
[1760323695846,0.71,197.07,196.95,7.53880539]
[1760323696142,0.71,197.07,197.04,6.93880539]
[1760323696369,6.93880539,197.13,197.06,6.93880539]
[1760323696643,6.93880539,197.13,196.96,31.67647521]
[1760323696644,6.93880539,197.07,197.01,5.07588447]
[1760323696849,32.38647521,197.12,197.01,5.07588447]
[1760323696850,20.8,197.02,197.01,5.07588447]
[1760323697046,21.51,197.02,196.98,17.7679638]
[1760323697362,6.93880539,197.0,196.98,5.07665752]
[1760323697530,6.93880539,196.99,196.98,5.07665752]
[1760323697734,7.64880539,196.99,196.98,5.07665752]
[1760323698228,6.93880539,197.0,196.98,5.07665752]
[1760323698546,6.93880539,197.0,196.96,12.69270124]
[1760323698872,6.93880539,196.97,196.94,17.77191022]
[1760323699158,6.93880539,196.95,196.94,5.07768863]
[1760323699336,7.64880539,196.95,196.92,5.07820434]
[1760323699645,27.73880539,196.93,196.89,5.0789781]
[1760323699836,6.93880539,196.9,196.89,5.0789781]
[1760323700240,20.8,196.93,196.89,17.77642337]
[1760323700428,6.93880539,196.9,196.88,5.07923608]
[1760323700632,0.71,196.89,196.88,5.07923608]
[1760323702162,0.71,196.91,196.88,17.77732628]
[1760323702458,0.71,196.9,196.88,17.77732628]
[1760323703241,0.71,196.89,196.88,17.77732628]
[1760323703566,7.64880539,196.89,196.88,5.07923608]
[1760323703732,7.75683258,196.89,196.88,5.07923608]
[1760323704632,7.75683258,196.89,196.85,12.69967749]
[1760323704859,0.81802719,196.89,196.85,12.69967749]
[1760323705854,0.10802719,196.89,196.87,6.93880539]
[1760323706151,1e-08,196.89,196.88,7.53880539]
[1760323706356,1e-08,196.9,196.88,7.53880539]
[1760323706659,1e-08,196.9,196.89,6.93880539]
[1760323707048,1e-08,196.9,196.89,12.01778349]
[1760323707553,0.69000001,196.9,196.89,5.0789781]
[1760323707766,1e-08,196.9,196.89,5.0789781]
[1760323708339,1e-08,196.9,196.89,12.61778349]
[1760323708647,0.09565902,196.92,196.89,25.31522876]
[1760323708959,0.0992467,196.96,196.92,17.7737152]
[1760323709137,0.0992467,196.96,196.94,6.93880539]
[1760323709566,0.0987292,196.98,196.95,7.53880539]
[1760323709857,1e-08,196.98,196.96,6.93880539]
[1760323710070,1e-08,196.98,196.92,43.16473693]
[1760323710276,1e-08,196.98,196.97,6.93880539]
[1760323711159,1e-08,196.98,196.97,12.01572065]
[1760323711551,1e-08,196.98,196.97,12.61572065]
[1760323711750,1e-08,196.98,196.97,12.01572065]
[1760323715362,21.49000001,196.98,196.92,25.39102173]
[1760323715570,0.69,196.97,196.92,25.39102173]
[1760323715879,6.93880539,196.94,196.89,17.77642337]
[1760323716046,6.93880539,196.95,196.89,17.77642337]
[1760323716367,0.69,196.94,196.89,17.77642337]
[1760323716563,0.69,196.93,196.89,17.77642337]
[1760323717068,0.69,196.93,196.89,6.93880539]
[1760323717262,20.8,196.94,196.89,7.53880539]
[1760323717567,21.49,196.94,196.89,6.93880539]
[1760323717863,0.69,196.93,196.89,6.93880539]
[1760323719071,0.69,196.93,196.9,6.93880539]
[1760323719363,1e-08,196.98,196.92,6.93880539]
[1760323719364,0.69000001,196.98,196.92,6.93880539]
[1760323719664,0.69000001,196.98,196.97,6.93880539]
[1760323719665,1e-08,196.98,196.97,6.93880539]
[1760323719867,1e-08,196.98,196.97,7.53880539]
[1760323720469,1e-08,196.98,196.97,0.6]
[1760323720646,1e-08,196.98,196.91,31.67647521]
[1760323720647,1e-08,196.98,196.91,21.4]
[1760323720847,1e-08,196.98,196.96,6.93880539]
[1760323721165,1e-08,196.98,196.94,6.93880539]
[1760323723362,1e-08,196.98,196.95,17.77100787]
[1760323723766,0.09591892,196.97,196.96,6.93880539]
[1760323724065,0.09591892,196.97,196.95,24.70981326]
[1760323724444,0.09591892,196.97,196.95,17.77100787]
[1760323726769,7.62880539,196.96,196.95,5.07743082]
[1760323727160,0.69,196.96,196.95,5.07743082]
[1760323729252,0.69,196.96,196.89,17.77642337]
[1760323729466,7.62880539,196.96,196.89,24.71522876]
[1760323730183,6.93880539,196.96,196.89,24.71522876]
[1760323730379,7.60880539,196.95,196.89,24.71522876]
[1760323730756,0.67,196.95,196.89,50.1101193]
[1760323731271,0.67,196.95,196.91,17.77461784]
[1760323731669,20.8,196.96,196.91,18.37461784]
[1760323731866,20.8,196.96,196.91,25.31342323]
[1760323732174,7.60880539,196.95,196.91,17.77461784]
[1760323732478,7.60880539,196.94,196.91,17.77461784]
[1760323732667,20.8,196.96,196.91,17.77461784]
[1760323732668,6.93880539,196.95,196.91,17.77461784]
[1760323732866,0.67,196.94,196.91,17.77461784]
[1760323733379,0.67,196.94,196.91,12.6961556]
[1760323734071,28.40880539,196.96,196.91,12.6961556]
[1760323734269,27.73880539,196.96,196.91,12.6961556]
[1760323734480,0.67,196.95,196.91,12.6961556]
[1760323736081,0.71,196.95,196.91,12.6961556]
[1760323736280,0.09591892,196.97,196.92,7.53880539]
[1760323737157,0.80591892,196.97,196.92,7.53880539]
[1760323737363,0.80591892,196.97,196.93,17.77281266]
[1760323738169,0.09591892,196.97,196.93,28.10435982]
[1760323738370,0.09591892,196.97,196.93,28.70435982]
[1760323738586,0.09591892,196.97,196.94,10.33154716]
[1760323738885,0.80591892,196.97,196.94,10.33154716]
[1760323739055,0.09591892,196.97,196.94,10.33154716]
[1760323739257,1e-08,196.97,196.96,10.33154716]
[1760323739464,0.11130254,197.01,196.96,10.33154716]
[1760323739684,0.10847103,197.03,197.0,10.33154716]
[1760323739897,0.10847103,197.03,197.01,10.33154716]
[1760323740257,0.80401461,197.02,196.98,10.33154716]
[1760323740580,0.09401461,197.02,196.99,28.09894651]
[1760323741265,0.71,197.01,196.99,17.76739935]
[1760323741781,11.04154716,197.0,196.97,5.07691526]
[1760323741965,11.04154716,196.99,196.97,5.07691526]
[1760323742284,11.04154716,196.98,196.97,5.07691526]
[1760323742587,11.04154716,196.98,196.93,12.69462141]
[1760323742888,0.71,196.97,196.93,12.69462141]
[1760323743560,0.09401461,197.02,196.96,10.33154716]
[1760323743759,0.09401461,197.02,196.94,0.6]
[1760323743760,0.10122614,196.98,196.97,10.33154716]
[1760323744388,0.10122614,196.98,196.95,10.33154716]
[1760323744689,0.09646508,197.02,196.98,15.40820468]
[1760323744858,0.09646508,197.02,197.01,10.33154716]
[1760323745060,0.09646508,197.02,197.0,10.33154716]
[1760323746289,0.09646508,197.02,197.01,5.07588447]
[1760323746682,0.80646508,197.02,197.01,5.07588447]
[1760323746886,11.13801224,197.02,197.01,5.07588447]
[1760323747086,0.80646508,197.02,197.01,5.07588447]
[1760323748183,0.80646508,197.02,196.98,12.69164382]
[1760323748570,11.04154716,197.01,196.98,12.69164382]
[1760323748769,0.71,197.0,196.98,12.69164382]
[1760323750296,31.13154716,197.0,196.95,12.69357705]
[1760323750475,11.04154716,196.99,196.95,12.69357705]
[1760323750798,0.71,196.99,196.95,12.69357705]
[1760323751175,10.33154716,197.01,196.95,12.69357705]
[1760323751687,20.89646508,197.02,196.97,10.33154716]
[1760323751894,0.09646508,197.02,197.0,10.33154716]
[1760323752405,0.09646508,197.02,197.01,5.07588447]
[1760323753107,11.13801224,197.02,197.01,5.07588447]
[1760323753309,0.80646508,197.02,197.01,5.07588447]
[1760323754497,0.80646508,197.02,196.99,12.69070726]
[1760323754695,10.42801224,197.02,196.99,12.69070726]
[1760323754871,11.04154716,197.01,196.97,5.07691526]
[1760323755075,0.71,197.0,196.97,5.07691526]
[1760323755271,0.71,196.99,196.97,5.07691526]
[1760323755471,0.09646508,197.02,196.98,10.93154716]
[1760323755703,0.09646508,197.02,197.01,10.33154716]
[1760323755880,0.09646508,197.02,196.97,43.15377975]
[1760323756078,0.09646508,197.02,196.98,10.33154716]
[1760323756412,0.09646508,197.02,196.99,17.76739935]
[1760323757692,0.09646508,197.02,197.0,10.33154716]
[1760323758302,0.09646508,197.02,196.99,28.69894651]
[1760323759410,0.09646508,197.02,196.99,18.36739935]
[1760323759610,0.09646508,197.02,196.99,28.69894651]
[1760323760714,0.09646508,197.02,197.01,5.07588447]
[1760323761407,0.09646508,197.02,197.01,15.40743163]
[1760323761995,0.09646508,197.02,197.01,5.07588447]
[1760323762301,0.09646508,197.02,197.0,5.07614213]
[1760323763804,0.09171972,197.01,197.0,5.07614213]
[1760323764181,0.09171972,197.01,197.0,15.40768929]
[1760323764380,0.09171972,197.01,197.0,5.07614213]
[1760323766305,0.09171972,197.01,196.99,17.76739935]
[1760323766483,0.81171972,197.01,196.99,17.76739935]
[1760323766884,0.09171972,197.01,196.99,17.76739935]
[1760323767101,1e-08,197.01,197.0,10.93154716]
[1760323767290,1e-08,197.02,197.0,10.93154716]
[1760323767484,1e-08,197.02,196.99,17.76739935]
[1760323767485,1e-08,197.02,197.01,10.93154716]
[1760323768788,1e-08,197.02,197.01,5.07588447]
[1760323768986,1e-08,197.02,196.95,0.50774308]
[1760323768987,0.72000001,197.02,196.96,12.69239165]
[1760323769186,0.72,197.01,196.96,12.69239165]
[1760323769605,1e-08,197.02,196.97,10.93154716]
[1760323769807,1e-08,197.02,196.97,10.33154716]
[1760323769988,0.72,197.01,196.96,23.02393881]
[1760323770186,10.33154717,197.02,196.96,12.69239165]
[1760323770391,0.72,197.0,196.96,12.69239165]
[1760323770592,1e-08,197.02,196.96,12.69239165]
[1760323770800,0.72000001,197.02,196.98,17.76830134]
[1760323771001,1e-08,197.02,196.98,17.76830134]
[1760323771202,0.72000001,197.02,196.98,17.76830134]
[1760323771609,1e-08,197.02,196.98,28.0998485]
[1760323772298,0.72,197.01,196.98,17.76830134]
[1760323772499,1e-08,197.02,196.98,17.76830134]
[1760323772830,0.72000001,197.02,196.98,17.76830134]
[1760323773295,0.72,197.01,196.98,17.76830134]
[1760323773632,1e-08,197.02,196.98,17.76830134]
[1760323773803,0.72,197.01,196.98,17.76830134]
[1760323774499,11.05154716,197.01,196.98,17.76830134]
[1760323775317,1e-08,197.02,196.96,0.6]
[1760323775507,11.05154717,197.02,196.96,0.6]
[1760323775910,0.72000001,197.02,196.96,0.6]
[1760323776110,11.05154717,197.02,196.96,0.6]
[1760323776414,11.05154717,197.02,196.95,53.48846828]
[1760323777010,10.33154717,197.02,196.95,43.15692112]
[1760323777213,10.33154716,197.0,196.95,17.77100787]
[1760323777406,10.33154716,196.98,196.95,17.77100787]
[1760323777706,1e-08,197.02,196.96,0.6]
[1760323777906,11.05154716,197.01,196.95,17.77100787]
[1760323778102,10.33154716,196.99,196.95,17.77100787]
[1760323778303,11.05154716,196.99,196.95,17.77100787]
[1760323779012,0.72,197.01,196.95,17.77100787]
[1760323779228,10.33154716,197.0,196.95,38.08073115]
[1760323779428,11.05154716,197.0,196.95,38.08073115]
[1760323779937,10.33154716,197.0,196.95,38.68073115]
[1760323780225,11.05154716,197.0,196.95,43.75816197]
[1760323780615,10.33154717,197.02,196.96,0.6]
[1760323781008,1e-08,197.02,196.96,0.6]
[1760323781322,0.72,197.01,196.95,43.15816197]
[1760323782325,10.33154716,197.0,196.95,43.15816197]
[1760323782527,11.05154716,197.0,196.95,43.15816197]
[1760323782907,11.05154716,197.0,196.95,43.75816197]
[1760323783727,0.1005849,196.96,196.95,18.37100787]
[1760323785422,0.1005849,196.96,196.95,17.77100787]
[1760323785936,0.1005849,196.96,196.95,18.37100787]
[1760323788132,0.10024532,196.98,196.95,18.37100787]
[1760323788429,0.10024532,196.98,196.96,0.6]
[1760323788812,0.10024532,196.98,196.95,17.77100787]
[1760323789917,0.10024532,196.98,196.95,13.29357705]
[1760323791939,0.10024532,196.98,196.95,28.70255503]
[1760323793528,0.10024532,196.98,196.95,18.37100787]
[1760323793732,0.10024532,196.98,196.95,28.70255503]
[1760323794036,0.10024532,196.98,196.95,17.77100787]
[1760323796114,0.10024532,196.98,196.95,12.69357705]
[1760323797233,0.67,196.97,196.95,12.69357705]
[1760323797425,0.10024532,196.98,196.95,12.69357705]
[1760323797426,0.67,196.96,196.95,12.69357705]
[1760323799130,0.67,196.96,196.91,43.16668096]
[1760323799530,0.67,196.96,196.91,50.10336588]
[1760323799846,0.67,196.96,196.91,50.70336588]
[1760323800544,7.03693024,196.98,196.91,17.77461784]
[1760323800849,6.93668492,196.93,196.91,17.77461784]
[1760323801136,0.67,196.92,196.91,17.77461784]
[1760323801460,28.40668492,196.92,196.82,4.88]
[1760323801630,6.93668492,196.88,196.82,4.88]
[1760323801955,0.67,196.87,196.85,12.69967904]
[1760323802148,6.93668492,196.86,196.85,12.69967904]
[1760323802334,7.60668492,196.86,196.83,5.08052634]
[1760323802654,7.60668492,196.85,196.83,5.08052634]
[1760323803025,7.60668492,196.84,196.83,5.08052634]
[1760323803228,0.67,196.84,196.83,5.08052634]
[1760323803427,0.67,196.88,196.83,12.01721126]
[1760323803643,3.44728933,196.87,196.82,4.88]
[1760323803820,0.10192825,196.84,196.82,4.88]
[1760323804147,0.67,196.83,196.82,4.88]
[1760323804734,0.67,196.83,196.82,9.96078447]
[1760323805749,0.10192825,196.84,196.82,12.7380738]
[1760323805945,0.10192825,196.84,196.83,2.77728933]
[1760323806246,0.10192825,196.84,196.82,12.7380738]
[1760323807129,0.10192825,196.84,196.83,2.77728933]
[1760323809039,0.10192825,196.84,196.83,7.85781567]
[1760323809453,0.10192825,196.84,196.83,8.45781567]
[1760323810745,0.10192825,196.84,196.83,7.85781567]
[1760323810932,0.10192825,196.84,196.83,8.45781567]
[1760323812450,0.10192825,196.84,196.83,7.85781567]
[1760323813945,0.10279842,196.85,196.83,7.85781567]
[1760323814140,0.10279842,196.85,196.84,2.77728933]
[1760323815645,0.10279842,196.85,196.84,7.85755756]
[1760323816942,0.10240143,196.86,196.84,8.45755756]
[1760323817252,1e-08,196.91,196.86,10.87647521]
[1760323817448,1e-08,196.93,196.9,5.55457866]
[1760323817642,1e-08,196.93,196.92,7.85549367]
[1760323818272,0.67000001,196.93,196.92,7.85549367]
[1760323818567,1e-08,196.93,196.92,7.85549367]
[1760323820661,0.67000001,196.93,196.92,5.07820434]
[1760323822858,1e-08,196.93,196.92,7.85549367]
[1760323823157,1e-08,196.93,196.92,5.07820434]
[1760323823354,1e-08,196.93,196.92,8.45549367]
[1760323823736,0.0918243,196.94,196.92,21.15100453]
[1760323823956,0.1003016,196.95,196.93,2.77728933]
[1760323824160,0.1003016,196.95,196.94,2.77728933]
[1760323825663,0.1003016,196.95,196.94,7.85497796]
[1760323827250,0.7803016,196.95,196.94,5.07768863]
[1760323829253,0.7803016,196.95,196.88,28.17343583]
[1760323829438,0.68,196.94,196.88,28.17343583]
[1760323830466,134.1003016,196.95,196.88,28.17343583]
[1760323830645,2.77728933,196.91,196.87,17.77822928]
[1760323830847,0.68,196.9,196.87,17.77822928]
[1760323831058,0.68,196.89,196.87,17.77822928]
[1760323831248,0.68,196.88,196.84,12.70013494]
[1760323831472,2.77728933,196.89,196.84,12.70013494]
[1760323831473,0.68,196.87,196.84,12.70013494]
[1760323831638,2.77728933,196.89,196.84,12.70013494]
[1760323831639,0.68,196.86,196.84,12.70013494]
[1760323832062,0.68,196.85,196.84,12.70013494]
[1760323832551,20.8,196.84,196.83,5.08052634]
[1760323832757,21.48,196.84,196.83,5.08052634]
[1760323832950,0.68,196.84,196.83,5.08052634]
[1760323833267,134.0,196.89,196.83,17.78184219]
[1760323833268,0.68,196.88,196.83,17.78184219]
[1760323833474,134.0,196.89,196.83,18.38184219]
[1760323833771,134.68,196.89,196.84,2.77728933]
[1760323833951,0.68,196.88,196.84,2.77728933]
[1760323834746,0.68,196.87,196.84,2.77728933]
[1760323834940,134.0,196.89,196.83,20.55913152]
[1760323835179,95.86023364,196.95,196.88,2.77728933]
[1760323835348,95.18023364,196.95,196.92,2.77728933]
[1760323835547,0.1003016,196.95,196.94,2.77728933]
[1760323835867,1e-08,196.95,196.94,2.77728933]
[1760323836083,1e-08,196.96,196.94,3.37728933]
[1760323836369,0.1104314,197.01,196.95,14.25376454]
[1760323836574,0.1104314,197.01,196.97,2.77728933]
[1760323836869,0.1104314,197.01,196.99,2.77728933]
[1760323837070,0.1104314,197.01,196.98,2.77728933]
[1760323837272,0.68,197.0,196.93,17.77281266]
[1760323837473,0.1104314,197.01,196.98,2.77728933]
[1760323837769,0.1104314,197.01,196.96,2.77728933]
[1760323837943,0.68,197.0,196.96,2.77728933]
[1760323838348,0.68,196.99,196.93,17.77281266]
[1760323839052,0.68,196.98,196.93,17.77281266]
[1760323839274,0.68,196.97,196.93,17.77281266]
[1760323840060,0.68,196.96,196.93,17.77281266]
[1760323840374,0.68,196.99,196.93,17.77281266]
[1760323840553,0.1104314,197.01,196.94,3.37728933]
[1760323840948,0.1104314,197.01,196.93,43.16254505]
[1760323840949,0.1104314,197.01,196.96,2.77728933]
[1760323841175,0.1104314,197.01,196.95,0.6]
[1760323841546,0.1104314,197.01,196.96,17.7701056]
[1760323841759,0.7904314,197.01,196.96,17.7701056]
[1760323842559,0.7904314,197.01,196.96,18.3701056]
[1760323842947,0.11026563,197.02,196.97,2.77728933]
[1760323843153,0.11026563,197.02,196.99,2.77728933]
[1760323843458,0.11026563,197.02,196.97,0.6]
[1760323843459,3.45728933,197.08,197.01,2.77728933]
[1760323843660,0.1,197.13,197.03,2.77728933]
[1760323843861,0.1096421,197.06,197.02,17.76469392]
[1760323844672,0.68,197.05,197.02,17.76469392]
[1760323844865,3.45728933,197.04,197.02,5.07562683]
[1760323845072,0.68,197.03,197.02,5.07562683]
[1760323846177,0.68,197.03,196.97,25.38387918]
[1760323846377,0.68,197.02,196.97,25.38387918]
[1760323847280,0.68,197.02,196.97,43.1530826]
[1760323847781,7.62305354,197.01,196.97,17.76920342]
[1760323847957,0.69,197.0,196.97,17.76920342]
[1760323848573,0.69,196.99,196.97,17.76920342]
[1760323848783,0.69,196.98,196.97,5.07691526]
[1760323849458,0.69,196.98,196.92,25.39007688]
[1760323849978,0.69,197.03,196.93,7.53305354]
[1760323850177,27.73305354,197.02,196.94,0.6]
[1760323850364,6.93305354,197.0,196.93,6.93305354]
[1760323850572,6.93305354,196.98,196.92,25.39007688]
[1760323851560,6.93305354,196.98,196.92,43.16379208]
[1760323853879,6.93305354,196.98,196.92,43.76379208]
[1760323854280,6.93305354,196.96,196.92,17.7737152]
[1760323854463,6.93305354,196.94,196.92,5.07820434]
[1760323854983,95.07993204,197.0,196.94,10.87647521]
[1760323855180,20.8,197.02,196.98,6.93305354]
[1760323855360,0.67,197.01,196.92,43.76473693]
[1760323855562,0.67,197.01,196.94,6.93305354]
[1760323856162,0.67,197.01,196.95,17.77100787]
[1760323856684,7.60305354,197.04,196.96,7.53305354]
[1760323856873,7.60305354,197.04,196.97,0.6]
[1760323857666,7.60305354,197.04,196.95,43.15816197]
[1760323857889,6.93305354,197.02,196.95,50.09121551]
[1760323858187,0.67,197.01,196.95,43.15816197]
[1760323859594,10.32623428,197.04,196.96,10.92623428]